{"text_format":"1","workbook":"xlsx","n_sheets":3,"sheets":["Hoja1","tablas","Instrucciones"],"not_rendered":{"charts":0,"images":1,"macros":1,"external_links":0,"defined_names":1,"comments":0,"pivot_tables":0},"unopened":[],"bounds":{"document_bytes":16777216,"sheet_cells":100000,"rows_first":2000,"rows_last":500,"rows_between":2000,"halvings":0,"cell_chars":16384,"cell_head_chars":4096},"cells_cut":0,"cells_raw":0,"read":"whole","date_system":"1900"}

{"sheet":"Hoja1","index":0,"n_rows":72,"n_cols":33,"rows_kept":72,"cut":false,"hidden":false,"merged":[]}
[]
[null,null,null,null,null,"CORRAL 2 - BARRIO INDUSTRIAL"]
[null,null,null,null,null,"VEHICULOS EN CUSTODIA ",null,null,null,null,null,null,null,null,null,null,null,null,null,null,null,null,null,null,null,null,null,null,null,null,null,null,"Tipo vehículos"]
[null,null,null,null,null,null,null,null,null,null,null,null,null,null,null,null,null,null,null,null,null,null,null,null,null,null,null,null,null,null,null,null,"Automovil"]
[null,null,null,null,null,null,null,null,null,null,null,null,null,null,null,null,null,null,null,null,null,null,null,null,null,null,null,null,null,null,null,null,"Biciceta o similar"]
[null,null,null,null,null,null,null,null,null,null,null,null,null,null,null,null,null,null,null,null,null,null,null,null,null,null,null,null,null,null,null,null,"Camión"]
["N°","PPU","fecha ingreso","Tipo vehículo","Costo diario corral","Año Fab.","Marca","Modelo","Color","Motivo de Ingreso","Tribunal","CAUSA ROL/RIT/RUT","Propietario","DIAS EN CORRAL","MONTO ADEUDADO","Fecha retiro de corral","Monto pagado","Link documentos entrega ","Columna1",null,null,null,null,null,null,null,null,null,null,null,null,null,"Camioneta"]
[14,"BGVC28","2022-07-21","Station wagon",{"$f":"IF(Tabla3[[#This Row],[Tipo vehículo]]=\"\",\"Sin fecha ingreso\",LOOKUP(Tabla3[[#This Row],[Tipo vehículo]],Tabla2[Tipo vehículo],Tabla2[Valor diario]))","v":1586},2008,"HYUNDAI","SANTA FE GL 2,7","Azul","ACCIDENTE DE TRANSITO","JUZGADO POLICIA LOCAL","PARTE 1028-2022, OF. 411-2022 DE CARABINREOS CASABLANCA","MARCOS DANIEL FLORES AMAYA",{"$f":"IF(Tabla3[[#This Row],[fecha ingreso]]>0,TODAY()-Tabla3[[#This Row],[fecha ingreso]],\"Sin fecha de ingreso\")","v":473},{"$f":"IF(Tabla3[[#This Row],[Costo diario corral]]=\"Sin fecha ingreso\",\"faltan datos\",Tabla3[[#This Row],[Costo diario corral]]*Tabla3[[#This Row],[DIAS EN CORRAL]])","v":750178},null,null,null,null,null,null,null,null,null,null,null,null,null,null,null,null,null,"Carro arrastre"]
[62,"BHXT15","2021-11-25","Automovil",{"$f":"IF(Tabla3[[#This Row],[Tipo vehículo]]=\"\",\"Sin fecha ingreso\",LOOKUP(Tabla3[[#This Row],[Tipo vehículo]],Tabla2[Tipo vehículo],Tabla2[Valor diario]))","v":1586},2008,"TOYOTA ","YARIS XLI 1.5","AZUL GRISACEO METAL","Documentación Vencida","JUZGADO POLICIA LOCAL","Parte 150  1911-2022","VICTORIA JOCELYN CONSTANZO GUERRA ",{"$f":"IF(Tabla3[[#This Row],[fecha ingreso]]>0,TODAY()-Tabla3[[#This Row],[fecha ingreso]],\"Sin fecha de ingreso\")","v":711},{"$f":"IF(Tabla3[[#This Row],[Costo diario corral]]=\"Sin fecha ingreso\",\"faltan datos\",Tabla3[[#This Row],[Costo diario corral]]*Tabla3[[#This Row],[DIAS EN CORRAL]])","v":1127646},null,null,null,null,null,null,null,null,null,null,null,null,null,null,null,null,null,"Cuatrimoto"]
[18,"BVGG50","2021-10-12","Automovil",{"$f":"IF(Tabla3[[#This Row],[Tipo vehículo]]=\"\",\"Sin fecha ingreso\",LOOKUP(Tabla3[[#This Row],[Tipo vehículo]],Tabla2[Tipo vehículo],Tabla2[Valor diario]))","v":1586},2009,"CHEVROLET","CORSA PLUS NB 1.6","BLANCO BRIGHT","ABANDONADO VIA PUBLICA","JUZGADO POLICIA LOCAL","OFICIO Nº 1.017","RODRIGO ESTEBAN  FUENTES ALVAREZ",{"$f":"IF(Tabla3[[#This Row],[fecha ingreso]]>0,TODAY()-Tabla3[[#This Row],[fecha ingreso]],\"Sin fecha de ingreso\")","v":755},{"$f":"IF(Tabla3[[#This Row],[Costo diario corral]]=\"Sin fecha ingreso\",\"faltan datos\",Tabla3[[#This Row],[Costo diario corral]]*Tabla3[[#This Row],[DIAS EN CORRAL]])","v":1197430},null,null,null,null,null,null,null,null,null,null,null,null,null,null,null,null,null,"Furgón"]
[57,"BZ2516","2019-07-11","Automovil",{"$f":"IF(Tabla3[[#This Row],[Tipo vehículo]]=\"\",\"Sin fecha ingreso\",LOOKUP(Tabla3[[#This Row],[Tipo vehículo]],Tabla2[Tipo vehículo],Tabla2[Valor diario]))","v":1586},1988,"LADA",21051,"BLANCO","RETIRO DE LA CALLE POR INSPECTOR","JUZGADO POLICIA LOCAL","PARTE : 2565","MIGUEL ANGEL CORDOVA ACEVEDO",{"$f":"IF(Tabla3[[#This Row],[fecha ingreso]]>0,TODAY()-Tabla3[[#This Row],[fecha ingreso]],\"Sin fecha de ingreso\")","v":1579},{"$f":"IF(Tabla3[[#This Row],[Costo diario corral]]=\"Sin fecha ingreso\",\"faltan datos\",Tabla3[[#This Row],[Costo diario corral]]*Tabla3[[#This Row],[DIAS EN CORRAL]])","v":2504294},null,null,null,null,null,null,null,null,null,null,null,null,null,null,null,null,null,"Maquinaria industrial"]
[54,"CR4411",null,"Camioneta",{"$f":"IF(Tabla3[[#This Row],[Tipo vehículo]]=\"\",\"Sin fecha ingreso\",LOOKUP(Tabla3[[#This Row],[Tipo vehículo]],Tabla2[Tipo vehículo],Tabla2[Valor diario]))","v":1586},1981,"TOYOTA ","HI LUX 2000","AZUL",null,null,null,"SEGUNDO RODRIGO ALEGRE ARANEDA ",{"$f":"IF(Tabla3[[#This Row],[fecha ingreso]]>0,TODAY()-Tabla3[[#This Row],[fecha ingreso]],\"Sin fecha de ingreso\")","v":"Sin fecha de ingreso"},{"$f":"IF(Tabla3[[#This Row],[Costo diario corral]]=\"Sin fecha ingreso\",\"faltan datos\",Tabla3[[#This Row],[Costo diario corral]]*Tabla3[[#This Row],[DIAS EN CORRAL]])","v":{"$error":"#VALUE!"}},null,null,null,null,null,null,null,null,null,null,null,null,null,null,null,null,null,"Microbus"]
[3,"CS8791",null,"CAMIÓN",{"$f":"IF(Tabla3[[#This Row],[Tipo vehículo]]=\"\",\"Sin fecha ingreso\",LOOKUP(Tabla3[[#This Row],[Tipo vehículo]],Tabla2[Tipo vehículo],Tabla2[Valor diario]))","v":3173},1981,"CHEVROLET","C 30","ROJO",null,null,null,"PEDRO ENRIQUE ZAVALA HERNANDEZ",{"$f":"IF(Tabla3[[#This Row],[fecha ingreso]]>0,TODAY()-Tabla3[[#This Row],[fecha ingreso]],\"Sin fecha de ingreso\")","v":"Sin fecha de ingreso"},{"$f":"IF(Tabla3[[#This Row],[Costo diario corral]]=\"Sin fecha ingreso\",\"faltan datos\",Tabla3[[#This Row],[Costo diario corral]]*Tabla3[[#This Row],[DIAS EN CORRAL]])","v":{"$error":"#VALUE!"}},null,null,null,null,null,null,null,null,null,null,null,null,null,null,null,null,null,"Minibús"]
[51,"CXDX93","2022-05-31","Automovil",{"$f":"IF(Tabla3[[#This Row],[Tipo vehículo]]=\"\",\"Sin fecha ingreso\",LOOKUP(Tabla3[[#This Row],[Tipo vehículo]],Tabla2[Tipo vehículo],Tabla2[Valor diario]))","v":1586},2011,"TOYOTA","COROLLA XLI 1.6","GRIS OSCURO METALICO ","LEY 20000","FISCALIA LOCAL DE VALPARAISO","RUC 1501126040-0","TRANSPORTES Y AUTOMOTORA CENTROAUTOS SPA",{"$f":"IF(Tabla3[[#This Row],[fecha ingreso]]>0,TODAY()-Tabla3[[#This Row],[fecha ingreso]],\"Sin fecha de ingreso\")","v":524},{"$f":"IF(Tabla3[[#This Row],[Costo diario corral]]=\"Sin fecha ingreso\",\"faltan datos\",Tabla3[[#This Row],[Costo diario corral]]*Tabla3[[#This Row],[DIAS EN CORRAL]])","v":831064},null,null,null,null,null,null,null,null,null,null,null,null,null,null,null,null,null,"Minibús escolar"]
[37,"DI1213",null,null,{"$f":"IF(Tabla3[[#This Row],[Tipo vehículo]]=\"\",\"Sin fecha ingreso\",LOOKUP(Tabla3[[#This Row],[Tipo vehículo]],Tabla2[Tipo vehículo],Tabla2[Valor diario]))","v":"Sin fecha ingreso"},null,null,null,null,null,null,null,null,{"$f":"IF(Tabla3[[#This Row],[fecha ingreso]]>0,TODAY()-Tabla3[[#This Row],[fecha ingreso]],\"Sin fecha de ingreso\")","v":"Sin fecha de ingreso"},{"$f":"IF(Tabla3[[#This Row],[Costo diario corral]]=\"Sin fecha ingreso\",\"faltan datos\",Tabla3[[#This Row],[Costo diario corral]]*Tabla3[[#This Row],[DIAS EN CORRAL]])","v":"faltan datos"},null,null,null,null,null,null,null,null,null,null,null,null,null,null,null,null,null,"Moto"]
[19,"DJ7830",null,"Automovil",{"$f":"IF(Tabla3[[#This Row],[Tipo vehículo]]=\"\",\"Sin fecha ingreso\",LOOKUP(Tabla3[[#This Row],[Tipo vehículo]],Tabla2[Tipo vehículo],Tabla2[Valor diario]))","v":1586},1991,"TOYOTA","COROLLA 1.3 GL SEDAN","BLANCO",null,null,null,"PAMELA VERONICA VILLALOBOS RUIZ",{"$f":"IF(Tabla3[[#This Row],[fecha ingreso]]>0,TODAY()-Tabla3[[#This Row],[fecha ingreso]],\"Sin fecha de ingreso\")","v":"Sin fecha de ingreso"},{"$f":"IF(Tabla3[[#This Row],[Costo diario corral]]=\"Sin fecha ingreso\",\"faltan datos\",Tabla3[[#This Row],[Costo diario corral]]*Tabla3[[#This Row],[DIAS EN CORRAL]])","v":{"$error":"#VALUE!"}},null,null,null,null,null,null,null,null,null,null,null,null,null,null,null,null,null,"Station wagon"]
[70,"DN3261","2021-04-21","Automovil",{"$f":"IF(Tabla3[[#This Row],[Tipo vehículo]]=\"\",\"Sin fecha ingreso\",LOOKUP(Tabla3[[#This Row],[Tipo vehículo]],Tabla2[Tipo vehículo],Tabla2[Valor diario]))","v":1586},1991,"CHEVROLET","MONZA SL 1.8","BLANCO EVEREST","SIN DOCUMENTOS","JUZGADO POLICIA LOCAL","PARTE: 367","BERNARDO JOSE PARDO DIAZ",{"$f":"IF(Tabla3[[#This Row],[fecha ingreso]]>0,TODAY()-Tabla3[[#This Row],[fecha ingreso]],\"Sin fecha de ingreso\")","v":929},{"$f":"IF(Tabla3[[#This Row],[Costo diario corral]]=\"Sin fecha ingreso\",\"faltan datos\",Tabla3[[#This Row],[Costo diario corral]]*Tabla3[[#This Row],[DIAS EN CORRAL]])","v":1473394},null,null,null,null,null,null,null,null,null,null,null,null,null,null,null,null,null,"Taxi básico"]
[39,"DP6521","2019-07-11","Camioneta",{"$f":"IF(Tabla3[[#This Row],[Tipo vehículo]]=\"\",\"Sin fecha ingreso\",LOOKUP(Tabla3[[#This Row],[Tipo vehículo]],Tabla2[Tipo vehículo],Tabla2[Valor diario]))","v":1586},1992,"CHEVROLET","LUV 2.3 STD ","BLANCO","Abandonado en la vía pública","JUZGADO POLICIA LOCAL","Of 263 Inspección","ENRIQUE EUGENIO VILLEGAS GAZMURI",{"$f":"IF(Tabla3[[#This Row],[fecha ingreso]]>0,TODAY()-Tabla3[[#This Row],[fecha ingreso]],\"Sin fecha de ingreso\")","v":1579},{"$f":"IF(Tabla3[[#This Row],[Costo diario corral]]=\"Sin fecha ingreso\",\"faltan datos\",Tabla3[[#This Row],[Costo diario corral]]*Tabla3[[#This Row],[DIAS EN CORRAL]])","v":2504294},null,null,null,null,null,null,null,null,null,null,null,null,null,null,null,null,null,"Taxi colectivo"]
[66,"DR3046",null,"Automovil",{"$f":"IF(Tabla3[[#This Row],[Tipo vehículo]]=\"\",\"Sin fecha ingreso\",LOOKUP(Tabla3[[#This Row],[Tipo vehículo]],Tabla2[Tipo vehículo],Tabla2[Valor diario]))","v":1586},1992,"TOYOTA","CORONA 2.0 GL DLX AUT","BLANCO",null,null,null,"CARMEN HAYDEE LANDAUR BURGOS",{"$f":"IF(Tabla3[[#This Row],[fecha ingreso]]>0,TODAY()-Tabla3[[#This Row],[fecha ingreso]],\"Sin fecha de ingreso\")","v":"Sin fecha de ingreso"},{"$f":"IF(Tabla3[[#This Row],[Costo diario corral]]=\"Sin fecha ingreso\",\"faltan datos\",Tabla3[[#This Row],[Costo diario corral]]*Tabla3[[#This Row],[DIAS EN CORRAL]])","v":{"$error":"#VALUE!"}},null,null,null,null,null,null,null,null,null,null,null,null,null,null,null,null,null,"Taxi ejecutivo"]
[42,"DRJL87","2019-07-11","Automovil",{"$f":"IF(Tabla3[[#This Row],[Tipo vehículo]]=\"\",\"Sin fecha ingreso\",LOOKUP(Tabla3[[#This Row],[Tipo vehículo]],Tabla2[Tipo vehículo],Tabla2[Valor diario]))","v":1586},2012,"MAZDA","3 V 1.6 AT","NEGRO","Abandonado en la vía pública","JUZGADO POLICIA LOCAL","Oficio 149 Inspección de fecha 11-07-2019","LUIS ALFREDO HERNANDEZ GONZALEZ",{"$f":"IF(Tabla3[[#This Row],[fecha ingreso]]>0,TODAY()-Tabla3[[#This Row],[fecha ingreso]],\"Sin fecha de ingreso\")","v":1579},{"$f":"IF(Tabla3[[#This Row],[Costo diario corral]]=\"Sin fecha ingreso\",\"faltan datos\",Tabla3[[#This Row],[Costo diario corral]]*Tabla3[[#This Row],[DIAS EN CORRAL]])","v":2504294},null,null,null,null,null,null,null,null,null,null,null,null,null,null,null,null,null,"Taxi turismo"]
[17,"DT9712","2019-04-04","Automovil",{"$f":"IF(Tabla3[[#This Row],[Tipo vehículo]]=\"\",\"Sin fecha ingreso\",LOOKUP(Tabla3[[#This Row],[Tipo vehículo]],Tabla2[Tipo vehículo],Tabla2[Valor diario]))","v":1586},2012,"MAZDA ","3 V 1.6 AT","NEGRO","TRANSFERIDO DESDE CARABINEROS PEÑUELA","FISCALIA DE CASABLANCA",null,"LUIS ALFREDO HERNANDEZ GONZALEZ",{"$f":"IF(Tabla3[[#This Row],[fecha ingreso]]>0,TODAY()-Tabla3[[#This Row],[fecha ingreso]],\"Sin fecha de ingreso\")","v":1677},{"$f":"IF(Tabla3[[#This Row],[Costo diario corral]]=\"Sin fecha ingreso\",\"faltan datos\",Tabla3[[#This Row],[Costo diario corral]]*Tabla3[[#This Row],[DIAS EN CORRAL]])","v":2659722},null,null,null,null,null,null,null,null,null,null,null,null,null,null,null,null,null,"Taxibus"]
[35,"DXFH50","2022-03-17","Automovil",{"$f":"IF(Tabla3[[#This Row],[Tipo vehículo]]=\"\",\"Sin fecha ingreso\",LOOKUP(Tabla3[[#This Row],[Tipo vehículo]],Tabla2[Tipo vehículo],Tabla2[Valor diario]))","v":1586},2012,"CHEVROLET","SPARK LITE HB 1.0","BLANCO","Abandonado en la vía pública","JUZGADO POLICIA LOCAL","PARTE 170-2021, Of. 1145-2022 de Carabineros de Casablanca","IVAN ALEJANDRO BUSTAMANTE ROMERO",{"$f":"IF(Tabla3[[#This Row],[fecha ingreso]]>0,TODAY()-Tabla3[[#This Row],[fecha ingreso]],\"Sin fecha de ingreso\")","v":599},{"$f":"IF(Tabla3[[#This Row],[Costo diario corral]]=\"Sin fecha ingreso\",\"faltan datos\",Tabla3[[#This Row],[Costo diario corral]]*Tabla3[[#This Row],[DIAS EN CORRAL]])","v":950014},null,null,null,null,null,null,null,null,null,null,null,null,null,null,null,null,null,"Todo terreno"]
[7,"DY4321","2019-03-08","Station wagon",{"$f":"IF(Tabla3[[#This Row],[Tipo vehículo]]=\"\",\"Sin fecha ingreso\",LOOKUP(Tabla3[[#This Row],[Tipo vehículo]],Tabla2[Tipo vehículo],Tabla2[Valor diario]))","v":1586},1992,"FIAT","DUNA 1.6 SE","BLANCO","RETIRO DE LA CALLE POR INSPECTOR",null,null,"JOSE GILMAR ALVARADO ALBORTA",{"$f":"IF(Tabla3[[#This Row],[fecha ingreso]]>0,TODAY()-Tabla3[[#This Row],[fecha ingreso]],\"Sin fecha de ingreso\")","v":1704},{"$f":"IF(Tabla3[[#This Row],[Costo diario corral]]=\"Sin fecha ingreso\",\"faltan datos\",Tabla3[[#This Row],[Costo diario corral]]*Tabla3[[#This Row],[DIAS EN CORRAL]])","v":2702544},null,null,null,null,null,null,null,null,null,null,null,null,null,null,null,null,null,"Tractocamión"]
[69,"DZ1337","2020-06-03","Automovil",{"$f":"IF(Tabla3[[#This Row],[Tipo vehículo]]=\"\",\"Sin fecha ingreso\",LOOKUP(Tabla3[[#This Row],[Tipo vehículo]],Tabla2[Tipo vehículo],Tabla2[Valor diario]))","v":1586},1992,"LADA","2105 SEDAN","ROJO RUBINO","MAL ESTADO","JUZGADO POLICIA LOCAL","13.835.732-4","MANUEL ALEJANDRO LLANQUILEF MARIGUAL",{"$f":"IF(Tabla3[[#This Row],[fecha ingreso]]>0,TODAY()-Tabla3[[#This Row],[fecha ingreso]],\"Sin fecha de ingreso\")","v":1251},{"$f":"IF(Tabla3[[#This Row],[Costo diario corral]]=\"Sin fecha ingreso\",\"faltan datos\",Tabla3[[#This Row],[Costo diario corral]]*Tabla3[[#This Row],[DIAS EN CORRAL]])","v":1984086},null,null,null,null,null,null,null,null,null,null,null,null,null,null,null,null,null,"Triciclo (torito)"]
[50,"FSWX71",null,"Automovil",{"$f":"IF(Tabla3[[#This Row],[Tipo vehículo]]=\"\",\"Sin fecha ingreso\",LOOKUP(Tabla3[[#This Row],[Tipo vehículo]],Tabla2[Tipo vehículo],Tabla2[Valor diario]))","v":1586},2013,"TOYOTA ","YARIS GLI 1.5","ROJO MICA METALICO ",null,null,null,"LORENA DEL PILAR VILCHES ARANCIBIA ",{"$f":"IF(Tabla3[[#This Row],[fecha ingreso]]>0,TODAY()-Tabla3[[#This Row],[fecha ingreso]],\"Sin fecha de ingreso\")","v":"Sin fecha de ingreso"},{"$f":"IF(Tabla3[[#This Row],[Costo diario corral]]=\"Sin fecha ingreso\",\"faltan datos\",Tabla3[[#This Row],[Costo diario corral]]*Tabla3[[#This Row],[DIAS EN CORRAL]])","v":{"$error":"#VALUE!"}}]
[58,"FWJW12",null,"Automovil",{"$f":"IF(Tabla3[[#This Row],[Tipo vehículo]]=\"\",\"Sin fecha ingreso\",LOOKUP(Tabla3[[#This Row],[Tipo vehículo]],Tabla2[Tipo vehículo],Tabla2[Valor diario]))","v":1586},2013,"CHERY ","IQ 1.1","BLANCO",null,null,null,"CESAR ANTONIO OPAZO ROCCO",{"$f":"IF(Tabla3[[#This Row],[fecha ingreso]]>0,TODAY()-Tabla3[[#This Row],[fecha ingreso]],\"Sin fecha de ingreso\")","v":"Sin fecha de ingreso"},{"$f":"IF(Tabla3[[#This Row],[Costo diario corral]]=\"Sin fecha ingreso\",\"faltan datos\",Tabla3[[#This Row],[Costo diario corral]]*Tabla3[[#This Row],[DIAS EN CORRAL]])","v":{"$error":"#VALUE!"}}]
[1,"GDBF23",null,"Camioneta",{"$f":"IF(Tabla3[[#This Row],[Tipo vehículo]]=\"\",\"Sin fecha ingreso\",LOOKUP(Tabla3[[#This Row],[Tipo vehículo]],Tabla2[Tipo vehículo],Tabla2[Valor diario]))","v":1586},2014,"KIA MOTORS","FRONTIER 2.5","BLANCO INVIERNO",null,null,null,"MIGUEL ANGEL CAMACHO CANO",{"$f":"IF(Tabla3[[#This Row],[fecha ingreso]]>0,TODAY()-Tabla3[[#This Row],[fecha ingreso]],\"Sin fecha de ingreso\")","v":"Sin fecha de ingreso"},{"$f":"IF(Tabla3[[#This Row],[Costo diario corral]]=\"Sin fecha ingreso\",\"faltan datos\",Tabla3[[#This Row],[Costo diario corral]]*Tabla3[[#This Row],[DIAS EN CORRAL]])","v":{"$error":"#VALUE!"}}]
[22,"HKWF31","2022-05-31","Station wagon",{"$f":"IF(Tabla3[[#This Row],[Tipo vehículo]]=\"\",\"Sin fecha ingreso\",LOOKUP(Tabla3[[#This Row],[Tipo vehículo]],Tabla2[Tipo vehículo],Tabla2[Valor diario]))","v":1586},2016,"KIA MOTORS","CARENS LX 2.0","PLATEADO BRILLANTE","Ley 20000","FISCALIA DE CASABLANCA","RUC 1700118721-K","RODRIGO MAURICIO PEÑALOZA PEÑALOZA",{"$f":"IF(Tabla3[[#This Row],[fecha ingreso]]>0,TODAY()-Tabla3[[#This Row],[fecha ingreso]],\"Sin fecha de ingreso\")","v":524},{"$f":"IF(Tabla3[[#This Row],[Costo diario corral]]=\"Sin fecha ingreso\",\"faltan datos\",Tabla3[[#This Row],[Costo diario corral]]*Tabla3[[#This Row],[DIAS EN CORRAL]])","v":831064}]
[20,"JDLJ54","2022-08-29","Station wagon",{"$f":"IF(Tabla3[[#This Row],[Tipo vehículo]]=\"\",\"Sin fecha ingreso\",LOOKUP(Tabla3[[#This Row],[Tipo vehículo]],Tabla2[Tipo vehículo],Tabla2[Valor diario]))","v":1586},2017,"FORD","EXPLORER 2.3 AUT","ROJO METALICO","Ley 20000","Fiscalia de Valparaíso","Rruc 2100710140-3","JOSE LUIS OYARZUN VALDEBENITO",{"$f":"IF(Tabla3[[#This Row],[fecha ingreso]]>0,TODAY()-Tabla3[[#This Row],[fecha ingreso]],\"Sin fecha de ingreso\")","v":434},{"$f":"IF(Tabla3[[#This Row],[Costo diario corral]]=\"Sin fecha ingreso\",\"faltan datos\",Tabla3[[#This Row],[Costo diario corral]]*Tabla3[[#This Row],[DIAS EN CORRAL]])","v":688324}]
[75,"JDRX52","No estoy seguro si ya la entregaron","Station wagon",null,2017,"NISSAN","X TRAIL SENSE 2.5 AUT","AZUL GRAFITO",null,null,null,"FRANCISCO JAVIER ITURRIETA BARRERA "]
[25,"JPCB24","2022-05-15","Station wagon",{"$f":"IF(Tabla3[[#This Row],[Tipo vehículo]]=\"\",\"Sin fecha ingreso\",LOOKUP(Tabla3[[#This Row],[Tipo vehículo]],Tabla2[Tipo vehículo],Tabla2[Valor diario]))","v":1586},2017,"HYUNDAI","TUCSON TL GL ADVANCE S A","GRIS GRAFITO","DOCUMENTACION VENCIDA","JUZGADO POLICIA LOCAL","PARTE 765-2022, OFICIO 264-2022 DE CARABINEROS DE CASABLANCA","GRAFICA IND Y COMERC DE BIENES Y SERV PUB GRUPO INGRAFF LTDA",{"$f":"IF(Tabla3[[#This Row],[fecha ingreso]]>0,TODAY()-Tabla3[[#This Row],[fecha ingreso]],\"Sin fecha de ingreso\")","v":540},{"$f":"IF(Tabla3[[#This Row],[Costo diario corral]]=\"Sin fecha ingreso\",\"faltan datos\",Tabla3[[#This Row],[Costo diario corral]]*Tabla3[[#This Row],[DIAS EN CORRAL]])","v":856440}]
[23,"KF5333",null,"Automovil",{"$f":"IF(Tabla3[[#This Row],[Tipo vehículo]]=\"\",\"Sin fecha ingreso\",LOOKUP(Tabla3[[#This Row],[Tipo vehículo]],Tabla2[Tipo vehículo],Tabla2[Valor diario]))","v":1586},1992,"CHEVROLET","MONZA 1.8 SLE","AZUL OSCURO",null,null,null,"MIGUEL ENRIQUE CERDA SIRA",{"$f":"IF(Tabla3[[#This Row],[fecha ingreso]]>0,TODAY()-Tabla3[[#This Row],[fecha ingreso]],\"Sin fecha de ingreso\")","v":"Sin fecha de ingreso"},{"$f":"IF(Tabla3[[#This Row],[Costo diario corral]]=\"Sin fecha ingreso\",\"faltan datos\",Tabla3[[#This Row],[Costo diario corral]]*Tabla3[[#This Row],[DIAS EN CORRAL]])","v":{"$error":"#VALUE!"}}]
[55,"KJ3531",null,"Automovil",{"$f":"IF(Tabla3[[#This Row],[Tipo vehículo]]=\"\",\"Sin fecha ingreso\",LOOKUP(Tabla3[[#This Row],[Tipo vehículo]],Tabla2[Tipo vehículo],Tabla2[Valor diario]))","v":1586},1993,"DAEWOO","RACER MT GSI 1.5","GRIS OSCURO",null,null,null,"YESSENIA IVONNE SORIANO SORIANO",{"$f":"IF(Tabla3[[#This Row],[fecha ingreso]]>0,TODAY()-Tabla3[[#This Row],[fecha ingreso]],\"Sin fecha de ingreso\")","v":"Sin fecha de ingreso"},{"$f":"IF(Tabla3[[#This Row],[Costo diario corral]]=\"Sin fecha ingreso\",\"faltan datos\",Tabla3[[#This Row],[Costo diario corral]]*Tabla3[[#This Row],[DIAS EN CORRAL]])","v":{"$error":"#VALUE!"}}]
[5,"KT7219","2019-03-08","Automovil",{"$f":"IF(Tabla3[[#This Row],[Tipo vehículo]]=\"\",\"Sin fecha ingreso\",LOOKUP(Tabla3[[#This Row],[Tipo vehículo]],Tabla2[Tipo vehículo],Tabla2[Valor diario]))","v":1586},1993,"LADA","SAMARA 21080 1.3","ROJO PURPURA","RETIRO DE LA CALLE POR INSPECTOR",null,null,"PABLO FERNANDO HENRIQUEZ ALLENDES",{"$f":"IF(Tabla3[[#This Row],[fecha ingreso]]>0,TODAY()-Tabla3[[#This Row],[fecha ingreso]],\"Sin fecha de ingreso\")","v":1704},{"$f":"IF(Tabla3[[#This Row],[Costo diario corral]]=\"Sin fecha ingreso\",\"faltan datos\",Tabla3[[#This Row],[Costo diario corral]]*Tabla3[[#This Row],[DIAS EN CORRAL]])","v":2702544}]
[71,"KU5246","2020-06-03","Automovil",{"$f":"IF(Tabla3[[#This Row],[Tipo vehículo]]=\"\",\"Sin fecha ingreso\",LOOKUP(Tabla3[[#This Row],[Tipo vehículo]],Tabla2[Tipo vehículo],Tabla2[Valor diario]))","v":1586},1993,"MAZDA","323 GLX 1.6 I","GRIS","ACCIDENTE TRANSITO","JUZGADO POLICIA LOCAL","PARTE : 519","LUIS DENIS POBLETE RIVERA",{"$f":"IF(Tabla3[[#This Row],[fecha ingreso]]>0,TODAY()-Tabla3[[#This Row],[fecha ingreso]],\"Sin fecha de ingreso\")","v":1251},{"$f":"IF(Tabla3[[#This Row],[Costo diario corral]]=\"Sin fecha ingreso\",\"faltan datos\",Tabla3[[#This Row],[Costo diario corral]]*Tabla3[[#This Row],[DIAS EN CORRAL]])","v":1984086}]
[64,"KU7037","2021-10-04","Automovil",{"$f":"IF(Tabla3[[#This Row],[Tipo vehículo]]=\"\",\"Sin fecha ingreso\",LOOKUP(Tabla3[[#This Row],[Tipo vehículo]],Tabla2[Tipo vehículo],Tabla2[Valor diario]))","v":1586},1993,"OPEL","ASTRA GLE E","ROJO","DOCUMENTOS VENCIDOS","JUZGADO POLICIA LOCAL","PARTE 1238-2021, OFICIO 1061 DE CARABINEROS DE CASABLANCA","PAOLA JACQUELINE ARAVENA LARA ",{"$f":"IF(Tabla3[[#This Row],[fecha ingreso]]>0,TODAY()-Tabla3[[#This Row],[fecha ingreso]],\"Sin fecha de ingreso\")","v":763},{"$f":"IF(Tabla3[[#This Row],[Costo diario corral]]=\"Sin fecha ingreso\",\"faltan datos\",Tabla3[[#This Row],[Costo diario corral]]*Tabla3[[#This Row],[DIAS EN CORRAL]])","v":1210118}]
[56,"LB8483","2019-09-26","Automovil",{"$f":"IF(Tabla3[[#This Row],[Tipo vehículo]]=\"\",\"Sin fecha ingreso\",LOOKUP(Tabla3[[#This Row],[Tipo vehículo]],Tabla2[Tipo vehículo],Tabla2[Valor diario]))","v":1586},1994,"FIAT","TEMPRA 1.6 SE","ROJO BURDEO",null,"CARABINEROS CASABLANCA","OFICIO N° 437/06-09-2019","RAUL MANUEL LOBOS ALFARO",{"$f":"IF(Tabla3[[#This Row],[fecha ingreso]]>0,TODAY()-Tabla3[[#This Row],[fecha ingreso]],\"Sin fecha de ingreso\")","v":1502},{"$f":"IF(Tabla3[[#This Row],[Costo diario corral]]=\"Sin fecha ingreso\",\"faltan datos\",Tabla3[[#This Row],[Costo diario corral]]*Tabla3[[#This Row],[DIAS EN CORRAL]])","v":2382172}]
[28,"LN3408",null,"Camioneta",{"$f":"IF(Tabla3[[#This Row],[Tipo vehículo]]=\"\",\"Sin fecha ingreso\",LOOKUP(Tabla3[[#This Row],[Tipo vehículo]],Tabla2[Tipo vehículo],Tabla2[Valor diario]))","v":1586},1995,"CHEVROLET","LUV 2,3 D CAB DLX","GRIS OSCURO METALICO ",null,null,null,"GISELLE MARÍA ARANGUIZ MARGUE ",{"$f":"IF(Tabla3[[#This Row],[fecha ingreso]]>0,TODAY()-Tabla3[[#This Row],[fecha ingreso]],\"Sin fecha de ingreso\")","v":"Sin fecha de ingreso"},{"$f":"IF(Tabla3[[#This Row],[Costo diario corral]]=\"Sin fecha ingreso\",\"faltan datos\",Tabla3[[#This Row],[Costo diario corral]]*Tabla3[[#This Row],[DIAS EN CORRAL]])","v":{"$error":"#VALUE!"}}]
[48,"LP4575","2019-07-11","Automovil",{"$f":"IF(Tabla3[[#This Row],[Tipo vehículo]]=\"\",\"Sin fecha ingreso\",LOOKUP(Tabla3[[#This Row],[Tipo vehículo]],Tabla2[Tipo vehículo],Tabla2[Valor diario]))","v":1586},1995,"PEUGEOT","306 XN 1.4","GRIS TUNGSTENO","RETIRO POR CARABINEROS ABANDONO EN VIA","JUZGADO POLICIA LOCAL","Oficio 149 Inspección de fecha 11-07-2019","MONICA DEL CARMEN OSORIO FUENTES ",{"$f":"IF(Tabla3[[#This Row],[fecha ingreso]]>0,TODAY()-Tabla3[[#This Row],[fecha ingreso]],\"Sin fecha de ingreso\")","v":1579},{"$f":"IF(Tabla3[[#This Row],[Costo diario corral]]=\"Sin fecha ingreso\",\"faltan datos\",Tabla3[[#This Row],[Costo diario corral]]*Tabla3[[#This Row],[DIAS EN CORRAL]])","v":2504294}]
[21,"LRFW27","2022-05-31","Automovil",{"$f":"IF(Tabla3[[#This Row],[Tipo vehículo]]=\"\",\"Sin fecha ingreso\",LOOKUP(Tabla3[[#This Row],[Tipo vehículo]],Tabla2[Tipo vehículo],Tabla2[Valor diario]))","v":1586},2020,"CHEVROLET","SPARTK GT 1.2","NEGRO","Robo con intimidación","FISCALIA LOCAL DE VALPARAISO","RUC 2101165937-0","SEBASTIAN CAMILO CONTRERAS VALLEJOS",{"$f":"IF(Tabla3[[#This Row],[fecha ingreso]]>0,TODAY()-Tabla3[[#This Row],[fecha ingreso]],\"Sin fecha de ingreso\")","v":524},{"$f":"IF(Tabla3[[#This Row],[Costo diario corral]]=\"Sin fecha ingreso\",\"faltan datos\",Tabla3[[#This Row],[Costo diario corral]]*Tabla3[[#This Row],[DIAS EN CORRAL]])","v":831064}]
[61,"LU9320",null,"Automovil",{"$f":"IF(Tabla3[[#This Row],[Tipo vehículo]]=\"\",\"Sin fecha ingreso\",LOOKUP(Tabla3[[#This Row],[Tipo vehículo]],Tabla2[Tipo vehículo],Tabla2[Valor diario]))","v":1586},1995,"OPEL","VECTRA 1,8 MT E","GRIS CLARO METALICO",null,null,null,"NORMAN JOSE BARRERA FREDES",{"$f":"IF(Tabla3[[#This Row],[fecha ingreso]]>0,TODAY()-Tabla3[[#This Row],[fecha ingreso]],\"Sin fecha de ingreso\")","v":"Sin fecha de ingreso"},{"$f":"IF(Tabla3[[#This Row],[Costo diario corral]]=\"Sin fecha ingreso\",\"faltan datos\",Tabla3[[#This Row],[Costo diario corral]]*Tabla3[[#This Row],[DIAS EN CORRAL]])","v":{"$error":"#VALUE!"}}]
[47,"LY9151",null,"Automovil",{"$f":"IF(Tabla3[[#This Row],[Tipo vehículo]]=\"\",\"Sin fecha ingreso\",LOOKUP(Tabla3[[#This Row],[Tipo vehículo]],Tabla2[Tipo vehículo],Tabla2[Valor diario]))","v":1586},1995,"VOLKSWAGEN","GOLF GL 1,8","AZUL METALICO",null,null,null,"FRANCISCO JULIAN SEGUNDO ALVAREZ PLAZA",{"$f":"IF(Tabla3[[#This Row],[fecha ingreso]]>0,TODAY()-Tabla3[[#This Row],[fecha ingreso]],\"Sin fecha de ingreso\")","v":"Sin fecha de ingreso"},{"$f":"IF(Tabla3[[#This Row],[Costo diario corral]]=\"Sin fecha ingreso\",\"faltan datos\",Tabla3[[#This Row],[Costo diario corral]]*Tabla3[[#This Row],[DIAS EN CORRAL]])","v":{"$error":"#VALUE!"}}]
[30,"NN3567","2021-04-26","Automovil",{"$f":"IF(Tabla3[[#This Row],[Tipo vehículo]]=\"\",\"Sin fecha ingreso\",LOOKUP(Tabla3[[#This Row],[Tipo vehículo]],Tabla2[Tipo vehículo],Tabla2[Valor diario]))","v":1586},1996,"TOYOTA","COROLLA LEI 1.6","BLANCO ","Vehículo abandonado en la Vía pública","JUZGADO POLICIA LOCAL","Causa 130787-21","REINALDO VERDEJO NAVIA ",{"$f":"IF(Tabla3[[#This Row],[fecha ingreso]]>0,TODAY()-Tabla3[[#This Row],[fecha ingreso]],\"Sin fecha de ingreso\")","v":924},{"$f":"IF(Tabla3[[#This Row],[Costo diario corral]]=\"Sin fecha ingreso\",\"faltan datos\",Tabla3[[#This Row],[Costo diario corral]]*Tabla3[[#This Row],[DIAS EN CORRAL]])","v":1465464}]
[38,"NU6368",null,"Station wagon",{"$f":"IF(Tabla3[[#This Row],[Tipo vehículo]]=\"\",\"Sin fecha ingreso\",LOOKUP(Tabla3[[#This Row],[Tipo vehículo]],Tabla2[Tipo vehículo],Tabla2[Valor diario]))","v":1586},1995,"FORD ","ESCORT LX 1.9","ROJO ELECTRICO",null,null,null,"JUAN WLADIMIR SILVA JOFRE ",{"$f":"IF(Tabla3[[#This Row],[fecha ingreso]]>0,TODAY()-Tabla3[[#This Row],[fecha ingreso]],\"Sin fecha de ingreso\")","v":"Sin fecha de ingreso"},{"$f":"IF(Tabla3[[#This Row],[Costo diario corral]]=\"Sin fecha ingreso\",\"faltan datos\",Tabla3[[#This Row],[Costo diario corral]]*Tabla3[[#This Row],[DIAS EN CORRAL]])","v":{"$error":"#VALUE!"}}]
[65,"NV3300",null,"Automovil",{"$f":"IF(Tabla3[[#This Row],[Tipo vehículo]]=\"\",\"Sin fecha ingreso\",LOOKUP(Tabla3[[#This Row],[Tipo vehículo]],Tabla2[Tipo vehículo],Tabla2[Valor diario]))","v":1586},1996,"NISSAN ","V16 EX 1.6","NEGRO GRIS ",null,null,null,"ESTEBAN PATRICIO ROJAS BERRIOS",{"$f":"IF(Tabla3[[#This Row],[fecha ingreso]]>0,TODAY()-Tabla3[[#This Row],[fecha ingreso]],\"Sin fecha de ingreso\")","v":"Sin fecha de ingreso"},{"$f":"IF(Tabla3[[#This Row],[Costo diario corral]]=\"Sin fecha ingreso\",\"faltan datos\",Tabla3[[#This Row],[Costo diario corral]]*Tabla3[[#This Row],[DIAS EN CORRAL]])","v":{"$error":"#VALUE!"}}]
[60,"NX5819",null,"Automovil",{"$f":"IF(Tabla3[[#This Row],[Tipo vehículo]]=\"\",\"Sin fecha ingreso\",LOOKUP(Tabla3[[#This Row],[Tipo vehículo]],Tabla2[Tipo vehículo],Tabla2[Valor diario]))","v":1586},1996,"KIA MOTORS","SEPHIA GTX 1.6","VERDE OLIVO",null,null,null,"LUIS ENRIQUE COLLARTE VERA ",{"$f":"IF(Tabla3[[#This Row],[fecha ingreso]]>0,TODAY()-Tabla3[[#This Row],[fecha ingreso]],\"Sin fecha de ingreso\")","v":"Sin fecha de ingreso"},{"$f":"IF(Tabla3[[#This Row],[Costo diario corral]]=\"Sin fecha ingreso\",\"faltan datos\",Tabla3[[#This Row],[Costo diario corral]]*Tabla3[[#This Row],[DIAS EN CORRAL]])","v":{"$error":"#VALUE!"}}]
[45,"PA5720","2019-09-26","Automovil",{"$f":"IF(Tabla3[[#This Row],[Tipo vehículo]]=\"\",\"Sin fecha ingreso\",LOOKUP(Tabla3[[#This Row],[Tipo vehículo]],Tabla2[Tipo vehículo],Tabla2[Valor diario]))","v":1586},1996,"NISSAN","V-16 SENTRA 1.6","ROJO BURDEO","RETIRO DE LA CALLE POR INSPECTOR","CARABINEROS CASABLANCA","OFICIO N°489","ANDRES CEFERINO CARREÑO FARIAS",{"$f":"IF(Tabla3[[#This Row],[fecha ingreso]]>0,TODAY()-Tabla3[[#This Row],[fecha ingreso]],\"Sin fecha de ingreso\")","v":1502},{"$f":"IF(Tabla3[[#This Row],[Costo diario corral]]=\"Sin fecha ingreso\",\"faltan datos\",Tabla3[[#This Row],[Costo diario corral]]*Tabla3[[#This Row],[DIAS EN CORRAL]])","v":2382172}]
[59,"PE7620","2021-04-26","Automovil",{"$f":"IF(Tabla3[[#This Row],[Tipo vehículo]]=\"\",\"Sin fecha ingreso\",LOOKUP(Tabla3[[#This Row],[Tipo vehículo]],Tabla2[Tipo vehículo],Tabla2[Valor diario]))","v":1586},1996,"CHEVROLET","CAVALIER 2.4 AUT ","ROJO BURDEO ","Abandonado en la vía pública","JUZGADO POLICIA LOCAL","Causa 130787-21","MAXIMO ANTONIO CRUZ LEIVA ",{"$f":"IF(Tabla3[[#This Row],[fecha ingreso]]>0,TODAY()-Tabla3[[#This Row],[fecha ingreso]],\"Sin fecha de ingreso\")","v":924},{"$f":"IF(Tabla3[[#This Row],[Costo diario corral]]=\"Sin fecha ingreso\",\"faltan datos\",Tabla3[[#This Row],[Costo diario corral]]*Tabla3[[#This Row],[DIAS EN CORRAL]])","v":1465464}]
[44,"PL1885","2019-07-11","Automovil",{"$f":"IF(Tabla3[[#This Row],[Tipo vehículo]]=\"\",\"Sin fecha ingreso\",LOOKUP(Tabla3[[#This Row],[Tipo vehículo]],Tabla2[Tipo vehículo],Tabla2[Valor diario]))","v":1586},1997,"RENAULT","CLIO RN 1.2","ROJO NACRE","CONDUCIR SIN DOCUMENTOS","JUZGADO POLICIA LOCAL","Oficio 149 de Inspeccón de fecha 11-07-2019","JUAN CARLOS FERNANDEZ JARA",{"$f":"IF(Tabla3[[#This Row],[fecha ingreso]]>0,TODAY()-Tabla3[[#This Row],[fecha ingreso]],\"Sin fecha de ingreso\")","v":1579},{"$f":"IF(Tabla3[[#This Row],[Costo diario corral]]=\"Sin fecha ingreso\",\"faltan datos\",Tabla3[[#This Row],[Costo diario corral]]*Tabla3[[#This Row],[DIAS EN CORRAL]])","v":2504294}]
[46,"PN4484",null,"Automovil",{"$f":"IF(Tabla3[[#This Row],[Tipo vehículo]]=\"\",\"Sin fecha ingreso\",LOOKUP(Tabla3[[#This Row],[Tipo vehículo]],Tabla2[Tipo vehículo],Tabla2[Valor diario]))","v":1586},1996,"OPEL","CORSA ECO","AZUL ATLANTIS MET ",null,null,null,"PATRICIO ERNESTO TORO REYES ",{"$f":"IF(Tabla3[[#This Row],[fecha ingreso]]>0,TODAY()-Tabla3[[#This Row],[fecha ingreso]],\"Sin fecha de ingreso\")","v":"Sin fecha de ingreso"},{"$f":"IF(Tabla3[[#This Row],[Costo diario corral]]=\"Sin fecha ingreso\",\"faltan datos\",Tabla3[[#This Row],[Costo diario corral]]*Tabla3[[#This Row],[DIAS EN CORRAL]])","v":{"$error":"#VALUE!"}}]
[10,"PP9422","2019-06-03","Automovil",{"$f":"IF(Tabla3[[#This Row],[Tipo vehículo]]=\"\",\"Sin fecha ingreso\",LOOKUP(Tabla3[[#This Row],[Tipo vehículo]],Tabla2[Tipo vehículo],Tabla2[Valor diario]))","v":1586},1996,"FORD","ESCORT CLX 1.4","GRIS OSCURO","RETIRO DE LA CALLE POR INSPECTOR","CARABINEROS PEÑUELA","OFICIO: 413","JORGE MARCELO GONZALEZ MORALES ",{"$f":"IF(Tabla3[[#This Row],[fecha ingreso]]>0,TODAY()-Tabla3[[#This Row],[fecha ingreso]],\"Sin fecha de ingreso\")","v":1617},{"$f":"IF(Tabla3[[#This Row],[Costo diario corral]]=\"Sin fecha ingreso\",\"faltan datos\",Tabla3[[#This Row],[Costo diario corral]]*Tabla3[[#This Row],[DIAS EN CORRAL]])","v":2564562}]
[4,"PV5670","2019-03-08","Automovil",{"$f":"IF(Tabla3[[#This Row],[Tipo vehículo]]=\"\",\"Sin fecha ingreso\",LOOKUP(Tabla3[[#This Row],[Tipo vehículo]],Tabla2[Tipo vehículo],Tabla2[Valor diario]))","v":1586},1997,"CHEVROLET","MONZA GL 1.8","NEGRO ROJO","TRANSFERIDO DESDE CARABINEROS PEÑUELA",null,null,"ALEJANDRO PATRICIO BEAS ARAYA",{"$f":"IF(Tabla3[[#This Row],[fecha ingreso]]>0,TODAY()-Tabla3[[#This Row],[fecha ingreso]],\"Sin fecha de ingreso\")","v":1704},{"$f":"IF(Tabla3[[#This Row],[Costo diario corral]]=\"Sin fecha ingreso\",\"faltan datos\",Tabla3[[#This Row],[Costo diario corral]]*Tabla3[[#This Row],[DIAS EN CORRAL]])","v":2702544}]
[26,"RPWP22","2022-09-06","Camioneta",{"$f":"IF(Tabla3[[#This Row],[Tipo vehículo]]=\"\",\"Sin fecha ingreso\",LOOKUP(Tabla3[[#This Row],[Tipo vehículo]],Tabla2[Tipo vehículo],Tabla2[Valor diario]))","v":1586},2022,"MAZDA","ALL NEW BT 50 4X4 3,0 AUT","GRIS ROCA","Conduccion en estado de ebriedad con resultado de muerte, Chocada","Ministerio Público, Fiscalía","Parte 804 de fecha 28-05-2022, RUC 2210026104-2","AGRICOLA MCB SPA",{"$f":"IF(Tabla3[[#This Row],[fecha ingreso]]>0,TODAY()-Tabla3[[#This Row],[fecha ingreso]],\"Sin fecha de ingreso\")","v":426},{"$f":"IF(Tabla3[[#This Row],[Costo diario corral]]=\"Sin fecha ingreso\",\"faltan datos\",Tabla3[[#This Row],[Costo diario corral]]*Tabla3[[#This Row],[DIAS EN CORRAL]])","v":675636}]
[67,"RR6350",null,"Automovil",{"$f":"IF(Tabla3[[#This Row],[Tipo vehículo]]=\"\",\"Sin fecha ingreso\",LOOKUP(Tabla3[[#This Row],[Tipo vehículo]],Tabla2[Tipo vehículo],Tabla2[Valor diario]))","v":1586},1997,"DAEWOO","RACER ETI 1.5","NEGRO",null,null,null,"MARIO ENRIQUE HERACLIO GUERRERO DELGADO ",{"$f":"IF(Tabla3[[#This Row],[fecha ingreso]]>0,TODAY()-Tabla3[[#This Row],[fecha ingreso]],\"Sin fecha de ingreso\")","v":"Sin fecha de ingreso"},{"$f":"IF(Tabla3[[#This Row],[Costo diario corral]]=\"Sin fecha ingreso\",\"faltan datos\",Tabla3[[#This Row],[Costo diario corral]]*Tabla3[[#This Row],[DIAS EN CORRAL]])","v":{"$error":"#VALUE!"}}]
[52,"SF8830","2022-06-14","Automovil",{"$f":"IF(Tabla3[[#This Row],[Tipo vehículo]]=\"\",\"Sin fecha ingreso\",LOOKUP(Tabla3[[#This Row],[Tipo vehículo]],Tabla2[Tipo vehículo],Tabla2[Valor diario]))","v":1586},1998,"HYUNDAI","ACCENT LS 1.5","AZUL ELECTRICO","Vehículo abandonado en la Vía pública","JUZGADO POLICIA LOCAL","PARTE NRO. 103-2022, OF 164-2022 DE CARABINEROS DE CASABLANCA","PEDRO ENRIQUE MUÑOZ HIGUERAS",{"$f":"IF(Tabla3[[#This Row],[fecha ingreso]]>0,TODAY()-Tabla3[[#This Row],[fecha ingreso]],\"Sin fecha de ingreso\")","v":510},{"$f":"IF(Tabla3[[#This Row],[Costo diario corral]]=\"Sin fecha ingreso\",\"faltan datos\",Tabla3[[#This Row],[Costo diario corral]]*Tabla3[[#This Row],[DIAS EN CORRAL]])","v":808860}]
[73,"SG7316",null,"Automovil",{"$f":"IF(Tabla3[[#This Row],[Tipo vehículo]]=\"\",\"Sin fecha ingreso\",LOOKUP(Tabla3[[#This Row],[Tipo vehículo]],Tabla2[Tipo vehículo],Tabla2[Valor diario]))","v":1586},1998,"CITROEN","XSARA SX 1.6","ROJO",null,null,null,"MIGUEL ERNESTO ARANDA ALVEAL",{"$f":"IF(Tabla3[[#This Row],[fecha ingreso]]>0,TODAY()-Tabla3[[#This Row],[fecha ingreso]],\"Sin fecha de ingreso\")","v":"Sin fecha de ingreso"},{"$f":"IF(Tabla3[[#This Row],[Costo diario corral]]=\"Sin fecha ingreso\",\"faltan datos\",Tabla3[[#This Row],[Costo diario corral]]*Tabla3[[#This Row],[DIAS EN CORRAL]])","v":{"$error":"#VALUE!"}}]
[24,"CLTR85","2022-05-31","Furgón",{"$f":"IF(Tabla3[[#This Row],[Tipo vehículo]]=\"\",\"Sin fecha ingreso\",LOOKUP(Tabla3[[#This Row],[Tipo vehículo]],Tabla2[Tipo vehículo],Tabla2[Valor diario]))","v":1586},null,"MERCEDES BENZ","AMBULANCIA","NEGRO","LEY 20000","FISCALIA LOCAL DE VALPARAISO","RUC 1501126040-0",null,{"$f":"IF(Tabla3[[#This Row],[fecha ingreso]]>0,TODAY()-Tabla3[[#This Row],[fecha ingreso]],\"Sin fecha de ingreso\")","v":524},{"$f":"IF(Tabla3[[#This Row],[Costo diario corral]]=\"Sin fecha ingreso\",\"faltan datos\",Tabla3[[#This Row],[Costo diario corral]]*Tabla3[[#This Row],[DIAS EN CORRAL]])","v":831064}]
[33,"SP5373",null,"Automovil",{"$f":"IF(Tabla3[[#This Row],[Tipo vehículo]]=\"\",\"Sin fecha ingreso\",LOOKUP(Tabla3[[#This Row],[Tipo vehículo]],Tabla2[Tipo vehículo],Tabla2[Valor diario]))","v":1586},1993,"RENAULT","SAFRANE 3.0","GRIS ",null,null,null,"ALDO RENE MAYOR OLIVOS ",{"$f":"IF(Tabla3[[#This Row],[fecha ingreso]]>0,TODAY()-Tabla3[[#This Row],[fecha ingreso]],\"Sin fecha de ingreso\")","v":"Sin fecha de ingreso"},{"$f":"IF(Tabla3[[#This Row],[Costo diario corral]]=\"Sin fecha ingreso\",\"faltan datos\",Tabla3[[#This Row],[Costo diario corral]]*Tabla3[[#This Row],[DIAS EN CORRAL]])","v":{"$error":"#VALUE!"}}]
[34,"SR7669",null,"Automovil",{"$f":"IF(Tabla3[[#This Row],[Tipo vehículo]]=\"\",\"Sin fecha ingreso\",LOOKUP(Tabla3[[#This Row],[Tipo vehículo]],Tabla2[Tipo vehículo],Tabla2[Valor diario]))","v":1586},1998,"FORD","FIESTA LX 1.3","ROJO LISO ",null,null,null,"FREDY EDUARDO VALLADARES VALLADARES ",{"$f":"IF(Tabla3[[#This Row],[fecha ingreso]]>0,TODAY()-Tabla3[[#This Row],[fecha ingreso]],\"Sin fecha de ingreso\")","v":"Sin fecha de ingreso"},{"$f":"IF(Tabla3[[#This Row],[Costo diario corral]]=\"Sin fecha ingreso\",\"faltan datos\",Tabla3[[#This Row],[Costo diario corral]]*Tabla3[[#This Row],[DIAS EN CORRAL]])","v":{"$error":"#VALUE!"}}]
[15,"TA3129",null,"Automovil",{"$f":"IF(Tabla3[[#This Row],[Tipo vehículo]]=\"\",\"Sin fecha ingreso\",LOOKUP(Tabla3[[#This Row],[Tipo vehículo]],Tabla2[Tipo vehículo],Tabla2[Valor diario]))","v":1586},1999,"MAZDA","ARTIS GLX BPS 1,6","PLATEADO",null,null,null,"CARLOS ALBERTO GONZALEZ PEREZ",{"$f":"IF(Tabla3[[#This Row],[fecha ingreso]]>0,TODAY()-Tabla3[[#This Row],[fecha ingreso]],\"Sin fecha de ingreso\")","v":"Sin fecha de ingreso"},{"$f":"IF(Tabla3[[#This Row],[Costo diario corral]]=\"Sin fecha ingreso\",\"faltan datos\",Tabla3[[#This Row],[Costo diario corral]]*Tabla3[[#This Row],[DIAS EN CORRAL]])","v":{"$error":"#VALUE!"}}]
[68,"TC5232","2020-11-30","Automovil",{"$f":"IF(Tabla3[[#This Row],[Tipo vehículo]]=\"\",\"Sin fecha ingreso\",LOOKUP(Tabla3[[#This Row],[Tipo vehículo]],Tabla2[Tipo vehículo],Tabla2[Valor diario]))","v":1586},1999,"HYUNDAI","ACCENT GLS 1.5","GRIS","RETIRO DE LA CALLE POR INSPECTOR","JUZGADO POLICIA LOCAL","PARTE: 2376","SERGIO EDUARDO NARBONA PAEZ",{"$f":"IF(Tabla3[[#This Row],[fecha ingreso]]>0,TODAY()-Tabla3[[#This Row],[fecha ingreso]],\"Sin fecha de ingreso\")","v":1071},{"$f":"IF(Tabla3[[#This Row],[Costo diario corral]]=\"Sin fecha ingreso\",\"faltan datos\",Tabla3[[#This Row],[Costo diario corral]]*Tabla3[[#This Row],[DIAS EN CORRAL]])","v":1698606}]
[40,"TT1446","2019-03-08","Station wagon",{"$f":"IF(Tabla3[[#This Row],[Tipo vehículo]]=\"\",\"Sin fecha ingreso\",LOOKUP(Tabla3[[#This Row],[Tipo vehículo]],Tabla2[Tipo vehículo],Tabla2[Valor diario]))","v":1586},2000,"FORD","ESCORT CLX 1.8","ROJO LISO","INCAUTADO POR PARTICIPE DE ROBO",null,null,"SOLANGE PAOLA ASTORGA VIVAR",{"$f":"IF(Tabla3[[#This Row],[fecha ingreso]]>0,TODAY()-Tabla3[[#This Row],[fecha ingreso]],\"Sin fecha de ingreso\")","v":1704},{"$f":"IF(Tabla3[[#This Row],[Costo diario corral]]=\"Sin fecha ingreso\",\"faltan datos\",Tabla3[[#This Row],[Costo diario corral]]*Tabla3[[#This Row],[DIAS EN CORRAL]])","v":2702544}]
[63,"TV8918",null,"Furgón",{"$f":"IF(Tabla3[[#This Row],[Tipo vehículo]]=\"\",\"Sin fecha ingreso\",LOOKUP(Tabla3[[#This Row],[Tipo vehículo]],Tabla2[Tipo vehículo],Tabla2[Valor diario]))","v":1586},2000,"CHEVROLET","COMBO","BLANCO",null,null,null,"DAVID HECTOR TRIVIÑOS RUBILAR ",{"$f":"IF(Tabla3[[#This Row],[fecha ingreso]]>0,TODAY()-Tabla3[[#This Row],[fecha ingreso]],\"Sin fecha de ingreso\")","v":"Sin fecha de ingreso"},{"$f":"IF(Tabla3[[#This Row],[Costo diario corral]]=\"Sin fecha ingreso\",\"faltan datos\",Tabla3[[#This Row],[Costo diario corral]]*Tabla3[[#This Row],[DIAS EN CORRAL]])","v":{"$error":"#VALUE!"}}]
[8,"UC3847","2019-03-08","Station wagon",{"$f":"IF(Tabla3[[#This Row],[Tipo vehículo]]=\"\",\"Sin fecha ingreso\",LOOKUP(Tabla3[[#This Row],[Tipo vehículo]],Tabla2[Tipo vehículo],Tabla2[Valor diario]))","v":1586},2001,"HYUNDAI","SANTAMO DLX","BLANCO BEIGE","RETIRO DE LA CALLE POR INSPECTOR","JUZGADO POLICIA LOCAL",null,"ARMANDO  DEL CARMEN RIVERA DE LA FUENTE",{"$f":"IF(Tabla3[[#This Row],[fecha ingreso]]>0,TODAY()-Tabla3[[#This Row],[fecha ingreso]],\"Sin fecha de ingreso\")","v":1704},{"$f":"IF(Tabla3[[#This Row],[Costo diario corral]]=\"Sin fecha ingreso\",\"faltan datos\",Tabla3[[#This Row],[Costo diario corral]]*Tabla3[[#This Row],[DIAS EN CORRAL]])","v":2702544}]
[6,"VN7855","2019-08-02","Automovil",{"$f":"IF(Tabla3[[#This Row],[Tipo vehículo]]=\"\",\"Sin fecha ingreso\",LOOKUP(Tabla3[[#This Row],[Tipo vehículo]],Tabla2[Tipo vehículo],Tabla2[Valor diario]))","v":1586},1995,"FORD","ASPIRE 1.1 AUT","ROJO","RETIRO POR INSPECTOR MUNICIPAL","JUZGADO POLICIA LOCAL",null,"EDUARDO AURELIO  PIÑA ROMERO",{"$f":"IF(Tabla3[[#This Row],[fecha ingreso]]>0,TODAY()-Tabla3[[#This Row],[fecha ingreso]],\"Sin fecha de ingreso\")","v":1557},{"$f":"IF(Tabla3[[#This Row],[Costo diario corral]]=\"Sin fecha ingreso\",\"faltan datos\",Tabla3[[#This Row],[Costo diario corral]]*Tabla3[[#This Row],[DIAS EN CORRAL]])","v":2469402}]
[29,"VY1324",null,"Automovil",{"$f":"IF(Tabla3[[#This Row],[Tipo vehículo]]=\"\",\"Sin fecha ingreso\",LOOKUP(Tabla3[[#This Row],[Tipo vehículo]],Tabla2[Tipo vehículo],Tabla2[Valor diario]))","v":1586},2003,"FIAT","SIENA EX FIRE 1.3","ROJO ALPINO",null,null,null,"JORGE EDUARDO MARTINEZ GONZALEZ ",{"$f":"IF(Tabla3[[#This Row],[fecha ingreso]]>0,TODAY()-Tabla3[[#This Row],[fecha ingreso]],\"Sin fecha de ingreso\")","v":"Sin fecha de ingreso"},{"$f":"IF(Tabla3[[#This Row],[Costo diario corral]]=\"Sin fecha ingreso\",\"faltan datos\",Tabla3[[#This Row],[Costo diario corral]]*Tabla3[[#This Row],[DIAS EN CORRAL]])","v":{"$error":"#VALUE!"}}]
[72,"WA1207","2021-04-26","Automovil",{"$f":"IF(Tabla3[[#This Row],[Tipo vehículo]]=\"\",\"Sin fecha ingreso\",LOOKUP(Tabla3[[#This Row],[Tipo vehículo]],Tabla2[Tipo vehículo],Tabla2[Valor diario]))","v":1586},2006,"MAZDA ","6 2,0 AUT","PLATEADO METALICO","Abandonado en la vía pública","JUZGADO POLICIA LOCAL","Causa 130787-21","ALEXIS ALFONSO GANGA SALINAS ",{"$f":"IF(Tabla3[[#This Row],[fecha ingreso]]>0,TODAY()-Tabla3[[#This Row],[fecha ingreso]],\"Sin fecha de ingreso\")","v":924},{"$f":"IF(Tabla3[[#This Row],[Costo diario corral]]=\"Sin fecha ingreso\",\"faltan datos\",Tabla3[[#This Row],[Costo diario corral]]*Tabla3[[#This Row],[DIAS EN CORRAL]])","v":1465464}]
[31,"XB9749","2020-02-25","RETROEXCAVADORA",{"$f":"IF(Tabla3[[#This Row],[Tipo vehículo]]=\"\",\"Sin fecha ingreso\",LOOKUP(Tabla3[[#This Row],[Tipo vehículo]],Tabla2[Tipo vehículo],Tabla2[Valor diario]))","v":317.26},2003,"JCB","JCB214E2","AMARILLO","DOCUMENTOS VENCIDOS","JUZGADO POLICIA LOCAL","PARTE: 290","MARCELA ANDREA OYARZO HERRERA",{"$f":"IF(Tabla3[[#This Row],[fecha ingreso]]>0,TODAY()-Tabla3[[#This Row],[fecha ingreso]],\"Sin fecha de ingreso\")","v":1350},{"$f":"IF(Tabla3[[#This Row],[Costo diario corral]]=\"Sin fecha ingreso\",\"faltan datos\",Tabla3[[#This Row],[Costo diario corral]]*Tabla3[[#This Row],[DIAS EN CORRAL]])","v":428301}]
[53,"XX7653","2022-01-05","Camioneta",{"$f":"IF(Tabla3[[#This Row],[Tipo vehículo]]=\"\",\"Sin fecha ingreso\",LOOKUP(Tabla3[[#This Row],[Tipo vehículo]],Tabla2[Tipo vehículo],Tabla2[Valor diario]))","v":1586},2004,"KIA MOTORS","FRONTIER PLUS 2.7","BLANCO","DOCUMENTACION VENCIDA","JUZGADO POLICIA LOCAL","PARTE 17-2022, OF. 10-2022 de Carabineros de Casablanca","MATIAS ANDRES RODRIGUEZ SUAREZ",{"$f":"IF(Tabla3[[#This Row],[fecha ingreso]]>0,TODAY()-Tabla3[[#This Row],[fecha ingreso]],\"Sin fecha de ingreso\")","v":670},{"$f":"IF(Tabla3[[#This Row],[Costo diario corral]]=\"Sin fecha ingreso\",\"faltan datos\",Tabla3[[#This Row],[Costo diario corral]]*Tabla3[[#This Row],[DIAS EN CORRAL]])","v":1062620}]
[36,"ZR4468","2021-01-19","Furgón",{"$f":"IF(Tabla3[[#This Row],[Tipo vehículo]]=\"\",\"Sin fecha ingreso\",LOOKUP(Tabla3[[#This Row],[Tipo vehículo]],Tabla2[Tipo vehículo],Tabla2[Valor diario]))","v":1586},2006,"RENAULT","KANGOO RL 1.9","BLANCO GLACIER","ABANDONADO","JUZGADO POLICIA LOCAL","PARTE 52-2021, ","JUAN GILBERTO FREDES RAMIREZ",{"$f":"IF(Tabla3[[#This Row],[fecha ingreso]]>0,TODAY()-Tabla3[[#This Row],[fecha ingreso]],\"Sin fecha de ingreso\")","v":1021},{"$f":"IF(Tabla3[[#This Row],[Costo diario corral]]=\"Sin fecha ingreso\",\"faltan datos\",Tabla3[[#This Row],[Costo diario corral]]*Tabla3[[#This Row],[DIAS EN CORRAL]])","v":1619306}]
[2,"ZS4753","2022-05-05","Station wagon",{"$f":"IF(Tabla3[[#This Row],[Tipo vehículo]]=\"\",\"Sin fecha ingreso\",LOOKUP(Tabla3[[#This Row],[Tipo vehículo]],Tabla2[Tipo vehículo],Tabla2[Valor diario]))","v":1586},2006,"CHEVROLET","VIVANT LS 1.6","BEIGE MELANGE","ABANDONADO EN LA vía pública","JUZGADO POLICIA LOCAL","PARTE 711-2022, OFICIO 246-2022 DE CARABINEROS DE CASABLANCA","LESLY DANIELA TAPIA MELLADO",{"$f":"IF(Tabla3[[#This Row],[fecha ingreso]]>0,TODAY()-Tabla3[[#This Row],[fecha ingreso]],\"Sin fecha de ingreso\")","v":550},{"$f":"IF(Tabla3[[#This Row],[Costo diario corral]]=\"Sin fecha ingreso\",\"faltan datos\",Tabla3[[#This Row],[Costo diario corral]]*Tabla3[[#This Row],[DIAS EN CORRAL]])","v":872300}]
[null,"QG237","2021-01-14","Moto",{"$f":"IF(Tabla3[[#This Row],[Tipo vehículo]]=\"\",\"Sin fecha ingreso\",LOOKUP(Tabla3[[#This Row],[Tipo vehículo]],Tabla2[Tipo vehículo],Tabla2[Valor diario]))","v":317.26},null,"YAMAHA","YZF","NEGRO","DOCUMENTOS VENCIDOS","JUZGADO POLICIA LOCAL","Sin Antecedentes","NICOLAS LUIS SUAREZ LOBOS",{"$f":"IF(Tabla3[[#This Row],[fecha ingreso]]>0,TODAY()-Tabla3[[#This Row],[fecha ingreso]],\"Sin fecha de ingreso\")","v":1026},{"$f":"IF(Tabla3[[#This Row],[Costo diario corral]]=\"Sin fecha ingreso\",\"faltan datos\",Tabla3[[#This Row],[Costo diario corral]]*Tabla3[[#This Row],[DIAS EN CORRAL]])","v":325508.76}]

{"sheet":"tablas","index":1,"n_rows":27,"n_cols":2,"rows_kept":27,"cut":false,"hidden":false,"merged":[]}
[]
["UTM Septiembre 2023",63452]
[]
[]
["Tipo vehículo","Valor diario"]
["Automovil",{"$f":"ROUND($B$2*0.025,0)","v":1586}]
["Biciceta o similar",{"$f":"ROUND($B$2*0.005,0)","v":317}]
["Bus",{"$f":"ROUND($B$2*0.05,0)","v":3173}]
["Camión",{"$f":"ROUND($B$2*0.05,0)","v":3173}]
["Camioneta",{"$f":"ROUND($B$2*0.025,0)","v":1586}]
["Carro arrastre",{"$f":"ROUND($B$2*0.05,0)","v":3173}]
["Cuatrimoto",{"$f":"$B$2*0.005","v":317.26}]
["Furgón",{"$f":"ROUND($B$2*0.025,0)","v":1586}]
["Maquinaria industrial",{"$f":"ROUND($B$2*0.05,0)","v":3173}]
["Microbus",{"$f":"ROUND($B$2*0.05,0)","v":3173}]
["Minibús",{"$f":"ROUND($B$2*0.025,0)","v":1586}]
["Minibús escolar",{"$f":"ROUND($B$2*0.025,0)","v":1586}]
["Moto",{"$f":"$B$2*0.005","v":317.26}]
["Station wagon",{"$f":"ROUND($B$2*0.025,0)","v":1586}]
["Taxi básico",1586]
["Taxi colectivo",1586]
["Taxi ejecutivo",1586]
["Taxi turismo",1586]
["Taxibus",{"$f":"ROUND($B$2*0.05,0)","v":3173}]
["Todo terreno",1586]
["Tractocamión",{"$f":"ROUND($B$2*0.05,0)","v":3173}]
["Triciclo (torito)",{"$f":"ROUND($B$2*0.005,0)","v":317}]

{"sheet":"Instrucciones","index":2,"n_rows":6,"n_cols":1,"rows_kept":6,"cut":false,"hidden":false,"merged":[]}
["Instrucciones para lleando de la planilla"]
[]
["1. Se deben registrar todos los vehículos y se les tomará una fotografía para registro"]
["2. Se debe solicitar el CAV del vehículo al JPL para registrar sus propietarios"]
["3. Se deberán escanear el acta de entrega de Carabineros y linkearla en la celda correspondiente"]
["4. Al momento de dar de baja el vehículo, también se deberá registrar el acta de entrega con el comprobante de pago de los derechos"]